Cogmind - Beta 16 @@@ ROGUE MODE // 2025.11.13 @ 01:07:16 Player: Star Result: Destroyed by 0K-K47(R) with Subdweller Machine Gun Performance ------------- Evolutions (0) 0 Regions Visited (2) 400 Robots Destroyed (8) 40 Value Destroyed (214) 214 Prototype IDs (0) 0 Alien Tech Used (0) 0 Bonus (0) 0 TOTAL SCORE: 654 Bonus ------- None Cogmind --------- Core Integrity 0/250 Matter 295/300 Energy 99/100 System Corruption 0% Temperature Cool (0) Movement Rolling (90) Location -10/Subcaves Parts ------- > --- POWER (1) -------- (None) > --- PROPULSION (2) --- Wheel Compact Wheel > --- UTILITY (2) ------ Structural Scanner Targeting Computer > --- WEAPON (2) ------- Subdweller Machine Gun > --- INVENTORY (5) ---- Makeshift Leg Medium Storage Unit Seismic Detector Subdweller Machine Gun Peak State ------------ > --- POWER ------------ Ion Engine > --- PROPULSION ------- Compact Wheel > --- UTILITY ---------- Medium Storage Unit Visual Processing Unit > --- WEAPON ----------- Subdweller Machine Gun Subdweller Machine Gun > --- INVENTORY -------- Structural Scanner Seismic Detector Targeting Computer [Rating: 9] Favorites ----------- Power Ion Engine Engine Ion Engine Propulsion Compact Wheel Wheel Compact Wheel Utility Visual Processing Unit Device Structural Scanner Storage Medium Storage Unit Processor Visual Processing Unit Weapon Subdweller Machine Gun Energy Gun Medium Laser Ballistic Gun Subdweller Machine Gun Special Weapon Welding Torch Build | -11 -10 -10 ------- Run | Yrd Mat Sub Slots Evolved . | . . . Power . | . . . Propulsion . | . . . Utility . | . . . Weapon . | . . . Parts Attached 15 | 6 3 6 Power 2 | 1 . 1 Engine 2 | 1 . 1 Core . | . . . Reactor . | . . . Propulsion 3 | 2 . 1 Treads . | . . . Leg . | . . . Wheel 3 | 2 . 1 Hover . | . . . Flight . | . . . Utility 5 | 1 2 2 Device 1 | . . 1 Storage 2 | 1 1 . Processor 2 | . 1 1 Hackware . | . . . Protection . | . . . Artifact . | . . . Weapon 5 | 2 1 2 Energy Gun 2 | 2 . . Energy Cannon . | . . . Ballistic Gun 2 | . . 2 Ballistic Cannon . | . . . Launcher . | . . . Special Weapon 1 | . 1 . Impact Weapon . | . . . Slashing Weapon . | . . . Piercing Weapon . | . . . Special Melee Weapon . | . . . Unidentified Prototypes . | . . . Parts Lost 7 | . 4 3 Power 2 | . . 2 Propulsion 1 | . 1 . Utility . | . . . Weapon 4 | . 3 1 Highest Loss Streak 3 | . 3 2 To Critical Strikes . | . . . Average Backups 2 | . 1 3 Power . | . . . Propulsion . | . . . Utility 2 | . 1 2 Weapon . | . . . Tool/Special . | . . . Unused Backups 3 | . . 3 Power . | . . . Propulsion 1 | . . 1 Utility 1 | . . 1 Weapon 1 | . . 1 Tool/Special . | . . . Average Slot Usage (%) 84 | . 93 79 Engine 13 | . 14 13 Wheel 21 | . 26 17 Device 3 | . . 5 Storage 10 | . 14 8 Processor 12 | . 11 14 Energy Gun 9 | . 24 . Ballistic Gun 11 | . . 18 Peak Build Rating 9 | 6 8 9 Average Rating 7 | 3 7 7 On Entrance 3 | . 6 5 Avg Prop Armor Cover (%) . | . . . Naked Turns . | . . . Heaviest Build 23 | 13 18 23 Greatest Support 26 | 26 26 26 Greatest Overweight (x) 1 | . 1 1 Average Overweight (x) . | . . . Largest Inventory Capacity 10 | 8 10 10 Average Capacity 8 | 7 9 7 Most Carried 5 | 3 4 5 Average Carried 2 | . 1 3 Final Capacity 10 | 8 10 5 Final Carried 4 | . 3 4 Class Distribution -------------------- 100% | Mutant Dominant Class ---------------- Mutant | -10/Materials Mutant | -10/Subcaves Resources | -11 -10 -10 ----------- Run | Yrd Mat Sub Matter Collected 365 | 224 46 95 Remotely . | . . . Salvage Created 243 | . 168 75 Parts 7 | . 3 4 Haulers Intercepted . | . . . Recyclers Shooed . | . . . Parts Field Recycled . | . . . Retrieved Matter . | . . . Parts Self-Destructed 10 | . . 10 Prevented . | . . . Parts Restored . | . . . Kills | -11 -10 -10 ------- Run | Yrd Mat Sub Combat Hostiles Destroyed 7 | . 3 4 Guns 6 | . 2 4 Classes Destroyed 4 | . 2 2 Watcher 1 | . 1 . Swarmer 3 | . . 3 Grunt 3 | . 3 . Subdweller 1 | . . 1 Best Kill Streak 3 | . 3 3 Combat Bots Only 3 | . 3 3 Max Kills in Single Turn 1 | . 1 1 Gunslinging . | . . . Exploded . | . . . Melee . | . . . Uniques/NPCs Destroyed . | . . . Combat | -11 -10 -10 -------- Run | Yrd Mat Sub Hostile Shots Fired 86 | . 49 37 Missed 22 | . 17 5 Hits 64 | . 32 32 Projectile 64 | . 32 32 Damage Taken 833 | . 435 398 Core 252 | . 116 136 Absorbed by Shields . | . . . Core Remaining (%) 100 | 100 . . Volleys Fired 41 | . 25 16 Largest 2 | . 2 2 Hottest 90 | . 90 60 Shots Fired 63 | . 36 27 Gun 58 | . 31 27 Cannon . | . . . Launcher . | . . . Special 5 | . 5 . Kinetic 27 | . . 27 Thermal 36 | . 36 . Explosive . | . . . Electromagnetic . | . . . Robot Hit Streak 9 | . 8 9 Robot Miss Streak 4 | . 3 4 Penetration Max . | . . . Secondary Targets . | . . . Shots Hit Robots 40 | . 25 15 Core Hits 12 | . 7 5 Critical Kills . | . . . Critical Parts Destroyed . | . . . Critical Strikes 5 | . 5 . Burn 5 | . 5 . Melee Attacks . | . . . Impact . | . . . Slashing . | . . . Piercing . | . . . Sneak Attacks . | . . . Combat Hostiles . | . . . Follow-up Attacks . | . . . Damage Inflicted 632 | . 305 327 Guns 627 | . 300 327 Cannons . | . . . Explosions . | . . . Melee . | . . . Ramming 1 | . 1 . Kinetic 327 | . . 327 Thermal 304 | . 304 . Explosive . | . . . Electromagnetic . | . . . Impact . | . . . Slashing . | . . . Piercing . | . . . Highest Corruption . | . . . Average Corruption . | . . . Corruption Purged . | . . . Corruption Blocked . | . . . Overload Shots . | . . . Overflow Damage . | . . . Projectiles . | . . . Explosions . | . . . Melee . | . . . Knockbacks . | . . . Impact . | . . . Kinetic . | . . . Secondary . | . . . Self-Inflicted Damage . | . . . Shots . | . . . Rammed 1 | . 1 . Targets Rammed 1 | . 1 . Kicked . | . . . Crushed . | . . . Highest Temperature 229 | . 229 . Average Temperature 99 | . 99 . Received Heat Transfer 249 | . 249 . Siege Activations . | . . . Martial Activations . | . . . Shielding Activations . | . . . Robots Disrupted . | . . . Combat Hostiles . | . . . Robots Corrupted . | . . . Combat Hostiles . | . . . Parts Fried . | . . . Impact Corruptions . | . . . Robots Melted 1 | . 1 . Combat Hostiles 1 | . 1 . Parts Melted 3 | . 3 . Heat Transferred 1247 | . 1247 . Parts Sabotaged . | . . . Parts Stolen . | . . . Parts Stripped . | . . . Power Chain Reactions . | . . . Alert | -11 -10 -10 ------- Run | Yrd Mat Sub Maximum Alert Level . | . . . Low Security (%) 100 | 100 100 . Level 1 . | . . . Level 2 . | . . . Level 3 . | . . . Level 4 . | . . . Level 5 . | . . . High Security . | . . . Max Security . | . . . Peak Influence 55 | . 55 . Initial . | . . . Average 4 | . 5 . Influence Increases 177 | . 107 70 Destroy 0b10 Robot/C 120 | . 60 60 Destroy 0b10 Robot/NC 5 | . 5 . Destroy Leader 32 | . 22 10 Successful Hack 5 | . 5 . Lose Combat Pursuer 15 | . 15 . Influence Decreases 177 | . 70 107 Entered New Map 18 | . . 18 Time Decay 129 | . 40 89 Lost Part 30 | . 30 . Squads Dispatched 1 | . 1 . Investigation 1 | . 1 . Extermination . | . . . Reinforcement . | . . . Assault . | . . . Garrison . | . . . Intercept . | . . . Searches Triggered . | . . . Construction Impeded . | . . . Haulers Reinforced . | . . . Active Scanning Responses . | . . . Cargo Convoy Interrupts . | . . . Stealth | -11 -10 -10 --------- Run | Yrd Mat Sub Distress Signals . | . . . Communications Jammed . | . . . Distress Signals . | . . . Times Spotted 12 | . 7 5 Peak Tracking Total 5 | . 5 3 Tactical Retreats 1 | . 1 . Traps | -11 -10 -10 ------- Run | Yrd Mat Sub Traps Triggered 1 | . 1 . Indirectly . | . . . Trap Hack Attempts . | . . . Triggered . | . . . Disarmed . | . . . Reprogrammed . | . . . Reused . | . . . Traps Extracted . | . . . Installed . | . . . Triggered . | . . . Machines | -11 -10 -10 ---------- Run | Yrd Mat Sub Machines Disabled . | . . . Max in Single Turn . | . . . Machines Repaired . | . . . Machines Dismantled . | . . . Machines Sabotaged . | . . . Overloaded Fab Kills . | . . . Hacking | -11 -10 -10 --------- Run | Yrd Mat Sub Machines Accessed 3 | . 3 . Terminals 2 | . 2 . Fabricators . | . . . Repair Stations . | . . . Recycling Units 1 | . 1 . Scanalyzers . | . . . Garrison Access . | . . . Total Hacks 5 | . 5 . Successful 3 | . 3 . Failed 2 | . 2 . Catastrophic . | . . . Database Lockouts . | . . . Manual . | . . . Terminals 4 | . 4 . Fabricators . | . . . Repair Stations . | . . . Recycling Units 1 | . 1 . Scanalyzers . | . . . Garrison Access . | . . . Terminal Hacks 2 | . 2 . Terminal Index 1 | . 1 . Zone Layout 1 | . 1 . Fabricator Hacks . | . . . Repair Station Hacks . | . . . Recycling Unit Hacks 1 | . 1 . Report Inventory 1 | . 1 . Scanalyzer . | . . . Garrison Access Hacks . | . . . Unauthorized Hacks . | . . . Terminals . | . . . Fabricators . | . . . Repair Stations . | . . . Recycling Units . | . . . Scanalyzers . | . . . Garrison Access . | . . . Data Cores Recovered . | . . . Used . | . . . Hacking Detections 1 | . 1 . Full Trace Events . | . . . Feedback Events . | . . . Feedback Blocked . | . . . Robot Schematics Acquired . | . . . Robots Built . | . . . Authchips . | . . . Time . | . . . Total Robot Build Rating . | . . . Part Schematics Acquired . | . . . Parts Built . | . . . Authchips . | . . . Time . | . . . Total Part Build Rating . | . . . Part Studies Acquired . | . . . Parts Repaired . | . . . Time . | . . . Parts Recycled . | . . . Recycled Matter . | . . . Retrieved Matter . | . . . Retrieved Components . | . . . Parts Scanalyzed . | . . . Part Schematics Acquired . | . . . Parts Damaged . | . . . Bothacking | -11 -10 -10 ------------ Run | Yrd Mat Sub Used RIF Installer . | . . . Robots Hacked . | . . . Non-combat . | . . . Combat . | . . . Robot Hacks Applied . | . . . Relay Couplers Released . | . . . Fabnet Peak Effective % . | . . . Robots Rewired . | . . . Allies Hacked . | . . . Hacks Repelled . | . . . Allies | -11 -10 -10 -------- Run | Yrd Mat Sub Total Allies . | . . . Largest Group . | . . . Highest-Rated Group . | . . . Highest-Rated Ally . | . . . Total Orders . | . . . Ally Attacks . | . . . Total Damage . | . . . Kills . | . . . Allies Corrupted . | . . . Allies Melted . | . . . Intel | -11 -10 -10 ------- Run | Yrd Mat Sub Active Infowar (turns) 864 | . 346 518 Optics 609 | . 346 263 Structural 255 | . . 255 Robot Analysis Total . | . . . Derelict Logs Recovered 2 | . . 2 Drone Launches . | . . . Drone Recoveries . | . . . Exploration | -11 -10 -10 ------------- Run | Yrd Mat Sub Turns Passed 1083 | 48 417 618 Spaces Moved 959 | 41 364 554 Core 7 | 7 . . Treads . | . . . Legs . | . . . Wheels 952 | 34 364 554 Hover . | . . . Flight . | . . . Fastest Speed 50 | 50 90 90 Average Speed 96 | 83 90 100 Slowest Speed 115 | 90 115 115 Overloaded Moves . | . . . Propulsion Burnouts . | . . . Robots Hopped . | . . . Potential Cave-ins . | . . . Cave-ins Triggered . | . . . Exploration Rate (%) 37 | 4 66 43 Regions Visited 2 Branch Regions 1 Pre-discovered Areas 1 | . . 1 Known Exits Taken . | . . . Unknown Exits Taken 2 | 1 1 . Scrap Searched . | . . . Spaces Dug . | . . . Terrain Destroyed . | . . . Melee . | . . . Projectile . | . . . AOE . | . . . Terrain Rammed . | . . . Walls Destroyed . | . . . Machines Disabled . | . . . Actions | -11 -10 -10 --------- Run | Yrd Mat Sub Total 1054 | 54 414 586 Wait 21 | 2 15 4 Move 957 | 40 363 554 Hop . | . . . Pick Up 18 | 6 6 6 Fast Attach . | . . . Attach 12 | 6 2 4 Detach . | . . . Swap 3 | . 1 2 Drop 1 | . 1 . Fire 41 | . 25 16 Melee . | . . . Ram 1 | . 1 . Kick . | . . . Crush . | . . . Escape Stasis . | . . . Rewire . | . . . Trap . | . . . Miscellaneous . | . . . Route ------- -11/Scrapyard -10/Materials (discovered 4 exits: [*Mat x2] / [*Min] / [*Sub]) -10/Subcaves History --------- Turn | Location | Event 6 | -11/Scrapyard | Discovered new exit (range 15) 49 | -11/Scrapyard | Entered Materials 163 | -10/Materials | Discovered new exit (range 5) 259 | -10/Materials | Discovered new exit (range 3) 303 | -10/Materials | Build established: Mutant 317 | -10/Materials | Discovered new exit (range 15) 457 | -10/Materials | Discovered new exit (range 10) 466 | -10/Materials | Entered Subcaves 469 | -10/Subcaves | Learned Materials stockpile data 474 | -10/Subcaves | Learned 2 Materials zone layouts 481 | -10/Subcaves | Lost 3 parts (1n2w) 512 | -10/Subcaves | Learned location of Zion (-7) 512 | -10/Subcaves | Met a Zionite searching for "candidates" 641 | -10/Subcaves | Shifting Twisted Machinery released Sub. Machine Gun 645 | -10/Subcaves | Shifting Twisted Machinery released Sub. Machine Gun 877 | -10/Subcaves | Core integrity fell below 50% 1034 | -10/Subcaves | Visited Clippyterm 1066 | -10/Subcaves | A Subdweller sparked back to life 1066 | -10/Subcaves | A Subdweller sparked back to life 1079 | -10/Subcaves | Core integrity fell below 20% 1084 | -10/Subcaves | Destroyed by 0K-K47(R) with Subdweller Machine Gun Last Messages --------------- 00902_ Acquired Lgt. Ion Engine. 00903_ Acquired 15 matter. 00904_ Acquired 12 matter. 00914_ Acquired 30 matter. 00916_ Acquired Wheel. 00919_ Acquired Sub. Machine Gun. 00921_ Subatomizers dissect the Cobbler Unit. 00922_ Acquired 5 matter. 00925_ Acquired 11 matter. 00931_ Acquired 2 matter. 01032_ A thin wall crumbles away, revealing a door. 01034_ The door opens automatically. 01066_ 3P-I7S(R) creaks and sparks as it begins to move. 01066_ 0K-K47(R) creaks and sparks as it begins to move. 01074_ Sub. Machine Gun destroyed. 01081_ 3P-I7S(R) destroyed. 01082_ Lgt. Ion Engine destroyed. Map ----- +----------------------------------------------------+ | ????????######### ##????????????????? | | ????????##"""### ###????????????????? | | ????????##"" ## ##????????????????? | | ????????##"X ###????????????????? | | ????????##"" ## ###????????????????? | | ????????##"""## ##?????????????????? | | ????????######### ###?????????????????? | | ????????######### ######???????????????? | | ??????????????### ######???????????????? | | ??????????????### ## ##???????????????? | | ??????????????## ##???????????????? | | ??????????????## ###???????????????? | | ??????????????## ### ##???????????????? | | ??????????????##### ####??????????????? | | ?????????????####### ####?????????????? | | ?????????????###< ###?????????????? | | ?????????????## <<&< # #????????? | | ?????????????## ##????????? | | ?????????????##<& "" ### # ###????????? | | ?????????????## ############????????? | | ?????????????### ###########???????????? | | ?????????????### ####??????????????????? | | ?????????????## R##????????????????????? | | ?????????????### ##????????????????????? | | ?????????????### %##????????????????????? | | ?????????????###@!##????????????????????? | | ?????????????## ##????????????????????? | | ?????????????### ###????????????????????? | | ?????????????#######????????????????????? | | ??????????????#####?????????????????????? | | ????????????????????????????????????????? | | ????????????????????????????????????????? | | ????????????????????????????????????????? | | ????????????????????????????????????????? | | ????????????????????????????????????????? | | ????????????????????????????????????????? | | ????????????????????????????????????????? | | ????????????????????????????????????????? | | ????????????????????????????????????????? | | ????????????????????????????????????????? | | ????????????????????????????????????????? | | ????????????????????????????????????????? | | ????????????????????????????????????????? | | ????????????????????????????????????????? | | ????????????????????????????????????????? | | ????????????????????????????????????????? | | ????????????????????????????????????????? | | ????????????????????????????????????????? | | ????????????????????????????????????????? | | ????????????????????????????????????????? | +----------------------------------------------------+ Best States ------------- Heat Dissipation 25 Energy Generation 10 Energy Capacity 250 Matter Stores 300 Matter Capacity 300 Sight Range 18 Terrain Scan Density 10 Evasion (%) 42 Targeting Accuracy 5 Item Schematics ----------------- None Robot Schematics ------------------ None Fabricated ------------ Nothing Repaired ---------- Nothing Studied --------- None Alien Tech Used ----------------- None Achievements -------------- None Challenges ------------ None Game ------ Seed ClaymoresPortableCorpse Manual? 0 Play Time 00:13:28 Cumulative 7.9 hours Start 2025.11.13 @ 00:54:25 End 2025.11.13 @ 01:07:16 Sessions 1 Manual Loads 0 Difficulty Rogue Special Mode None Game No. 23 Rogue 23 Adventurer 0 Explorer 0 Win Type - Total 0 Types 0/0/0/0/0/0/0/0/0/0 Lore% 3 Gallery% 13 Achievement% 11 Wizard Run 0 Options --------- Layout 1 ASCII 0 Keyboard 0 Movement Mouse Keybinds 0 Fullscreen 2 Font 32/SmallcapsGlow Map View 50x35 Zoom Use 0% Tactical HUD 1 Map Filters NONE Filters NONE Steam 1 RUN: d6607177-34a8-4946-a4f9-080440e499bc